Workbook

Sheet титульный лист
DI1: Приложение № 1
DI2: к приказу Министерства образования и науки Мурманской области от 18.06.2020 № 829
CZ4: Утверждаю
CZ5: Директор ГАПОУ МО "ПЭК"
CZ6: (наименование должности лица, утверждающего документ)
DO8: Шевченко Д.В.
CZ9: (подпись) | DO9: (расшифровка подписи)
CZ10: " | DB10: 30 | DE10: " | DH10: декабря | DW10: 20 | DZ10: 21 | EC10: г.
T13: План финансово-хозяйственной деятельности на 2021 г.
T14: (на 2021 и плановый период 2022 и 2023годов) | DV14: Коды
AU16: "29" декабря 2021 г. | DT16: Дата | DV16: 30.12.2021
A17: Наименование учреждения | AB17: Государственное автономное профессиональное образовательное учреждение Мурманской области "Полярнозоринский энергетический колледж" | DT17: по Сводному реестру | DV17: 472Ц8191
DT18: глава по БК | DV18: 804
A19: Орган, осуществляющий функции и полномочия учредителя | AG19: Министерство образования и науки Мурманской области | DT19: по Сводному реестру | DV19: 47200021
DT20: ИНН | DV20: 5102006924
DT21: КПП | DV21: 510201001
A22: Единицы измерения: рубли | DT22: по ОКЕИ | DV22: 383
A23: Юридический адрес учреждения | AO23: 184230, Мурманская обл., г. Полярные Зори, ул. Курчатова, д. 24
A24: Адрес фактического местонахождения учреждения | AO24: 184230, Мурманская обл., г. Полярные Зори, ул. Курчатова, д. 24
A25: ¹ Указывается дата утверждения Плана уполномоченным лицом учреждения

Sheet раздел.1_
A2: Раздел 1. Поступления и выплаты
A4: Наименование показателя | BA4: Код строки | BI4: Код по бюджетной классификации Российской Федерации ² | BV4: Аналитический код | CI4: Сумма, руб. ( с точностью до двух знаков после запятой. 0,00)
CI5: на 20 | CO5: 20 | CR5: г. | CV5: на 20 | DB5: 21 | DE5: г. | DI5: на 20 | DO5: 22 | DR5: г. | DV5: на 20 | EB5: 23 | EE5: г. | EI5: за пределами планового периода
CI6: отчетный финансовый год | CV6: текущий финансовый год | DI6: первый год планового периода | DV6: второй год планового периода
A7: 1 | BA7: 2 | BI7: 3 | BV7: 4 | CV7: 5 | DI7: 6 | DV7: 7 | EI7: 8
A8: Остаток средств на начало текущего финансового года³ | BA8: 0001 | BI8: х | BV8: х | CI8: =SUM(CI10:CU12) -> 8,000.00 | CV8: =SUM(CV10:DH12) -> 846,364.68 | DI8: =SUM(DI10:DU12) -> 124,330.00 | DV8: =SUM(DV10:EH12) -> 0.00
A9: из них : | BA9: х | BI9: х | BV9: х
A10: средства федерального бюджета | BA10: х | BV10: х
A11: средства областного бюджета | BA11: х | BV11: х | CI11: 0.00 | CV11: 761,621.54 | DV11: 0.00
A12: внебюджетные источники | BA12: х | BV12: х | CI12: 8,000.00 | CV12: =84738.8+4.34 -> 84,743.14 | DI12: =121330+3000 -> 124,330.00 | DV12: 0.00
A13: Остаток средств на конец текущего финансового года ³ | BA13: 0002 | BI13: х | BV13: х | CI13: =SUM(CI8+CI18-CI75) -> 846,364.68 | CV13: =CV15+CV16+CV17 -> 124,330.00 | DI13: 0.00 | DV13: 0.00
A14: из них : | BA14: х | BI14: х | BV14: х
A15: средства федерального бюджета | BA15: х | BV15: х | CI15: 0.00 | CV15: =CV10+CV20-CV77 -> 0.00 | DI15: =DI10+DI20-DI77 -> 0.00 | DV15: 0.00
A16: средства областного бюджета | BA16: х | BV16: х | CI16: 761,621.54 | CV16: =CV11+CV21-CV78 -> 0.00 | DI16: 0.00 | DV16: 0.00
A17: внебюджетные источники | BA17: х | BV17: х | CI17: =SUM(CI12+CI22-CI79) -> 84,743.14 | CV17: =CV12+CV22-CV79+CV160 -> 124,330.00 | DI17: 0.00 | DV17: 0.00
A18: Доходы, всего: | BA18: 1000 | BV18: х | CI18: =SUM(CI20:CU22) -> 88,645,261.60 | CV18: =SUM(CV20:DH22) -> 81,142,689.59 | DI18: =SUM(DI20:DU22) -> 68,955,020.00 | DV18: =SUM(DV20:EH22) -> 66,894,450.00
A19: из них : | BA19: х | BI19: х | BV19: х
A20: средства федерального бюджета | BA20: х | BV20: х | CI20: =CI46 -> 0.00 | CV20: =CV46 -> 1,014,200.40 | DI20: =DI46 -> 0.00
A21: средства областного бюджета | BA21: х | BV21: х | CI21: =SUM(CI33+CI47) -> 84,790,611.06 | CV21: =SUM(CV33+CV47) -> 75,462,488.48 | DI21: =SUM(DI33+DI47) -> 64,605,020.00 | DV21: =SUM(DV33+DV47) -> 62,539,450.00
A22: внебюджетные источники | BA22: х | BV22: х | CI22: =SUM(CI27+CI34+CI41+CI48+CI64+CI159+CI68) -> 3,854,650.54 | CV22: =SUM(CV23+CV34+CV37+CV48+CV60+CV68) -> 4,666,000.71 | DI22: 4,350,000.00 | DV22: =SUM(DV27+DV34+DV41+DV48+DV64+DV160) -> 4,355,000.00
A23: в том числе: доходы от собственности, всего | BA23: 1100 | BI23: 120 | BV23: х | CI23: =SUM(CI25:CU27) -> 214,798.95 | CV23: =SUM(CV25:DH27) -> 1,283,120.06 | DI23: 1,290,000.00 | DV23: =SUM(DV25:EH27) -> 1,300,000.00
A24: из них : | BA24: х | BI24: х | BV24: х
A25: средства федерального бюджета | BA25: х | BV25: х
A26: средства областного бюджета | BA26: х | BV26: х
A27: внебюджетные источники | BA27: х | BI27: 120 | BV27: х | CI27: 214,798.95 | CV27: =767262.86+515857.2 -> 1,283,120.06 | DI27: 1,290,000.00 | DV27: 1,300,000.00
A28: в том числе: | BV28: х
BV29: х
A30: доходы от оказания услуг, работ, компенсации затрат учреждений, всего | BA30: 1200 | BI30: 130 | BV30: х | CI30: =SUM(CI32:CU34) -> 57,669,858.34 | CV30: =SUM(CV32:DH34) -> 66,936,313.15 | DI30: 67,665,020.00 | DV30: =SUM(DV32:EH34) -> 65,639,450.00
A31: из них : | BA31: х | BI31: х | BV31: х
A32: средства федерального бюджета | BA32: х | BV32: х
A33: средства областного бюджета | BA33: х | BI33: 130 | BV33: х | CI33: =SUM(CI35) -> 54,404,563.60 | CV33: =63939850 -> 63,939,850.00 | DI33: 64,605,020.00 | DV33: =SUM(DV35) -> 62,539,450.00
A34: внебюджетные источники | BA34: х | BI34: 130 | BV34: х | CI34: 3,265,294.74 | CV34: 2,996,463.15 | DI34: 3,000,000.00 | DV34: 3,100,000.00
A35: в том числе: субсидии на финансовое обеспечение выполнения государственного (муниципального) задания за счет средств бюджета публично-правового образования, создавшего учреждение | BA35: 1210 | BI35: 130 | BV35: х | CI35: 54,404,563.60 | CV35: 63,939,850.00 | DI35: 64,605,020.00 | DV35: 62,539,450.00
A36: субсидии на финансовое обеспечение выполнения государственного задания за счет средств бюджета Федерального фонда обязательного медицинского страхования | BA36: 1220 | BI36: 130 | BV36: х
A37: доходы от штрафов, пеней, иных сумм принудительного изъятия, всего | BA37: 1300 | BI37: 140 | BV37: х | CI37: =SUM(CI39:CU41) -> 166,551.05 | CV37: =CV41 -> 159,808.95 | DI37: =DI41 -> 0.00 | DV37: =SUM(DV39:EH41) -> 0.00
A38: из них : | BA38: х | BI38: х | BV38: х
A39: средства федерального бюджета | BA39: х | BV39: х
A40: средства областного бюджета | BA40: х | BV40: х
A41: внебюджетные источники | BA41: х | BI41: 140 | BV41: х | CI41: 166,551.05 | CV41: 159,808.95 | DI41: 0.00 | DV41: 0.00
A42: в том числе: | BA42: 1310 | BI42: 140
A44: безвозмездные денежные поступления, всего | BA44: 1400 | BI44: 150 | BV44: х | CI44: =SUM(CI46:CU48) -> 30,486,847.46 | CV44: =SUM(CV46:DH48) -> 12,626,438.88 | DI44: =SUM(DI46:DU48) -> 0.00 | DV44: =SUM(DV46:EH48) -> 0.00
A45: из них : | BA45: х | BI45: х | BV45: х
A46: средства федерального бюджета | BA46: х | BV46: х | CI46: 0.00 | CV46: =1014200.4 -> 1,014,200.40 | DI46: 0.00 | DV46: 0.00
A47: средства областного бюджета | BA47: х | BV47: х | CI47: 30,386,047.46 | CV47: =12536838.88-1014200.4 -> 11,522,638.48 | DI47: 0.00 | DV47: 0.00
A48: внебюджетные источники | BA48: х | BI48: 150 | BV48: х | CI48: 100,800.00 | CV48: 89,600.00 | DI48: 0.00 | DV48: 0.00
A49: в том числе: | BA49: 1410 | BI49: 150 | CI49: 30,386,047.46 | CV49: 12,536,838.88 | DI49: 0.00 | DV49: 0.00
A50: целевые субсидии
A51: субсидии на осуществление капитальных вложений | BA51: 1420 | BI51: 150
A52: прочие доходы, всего | BA52: 1500 | BI52: 180 | BV52: х
A53: из них : | BA53: х | BI53: х | BV53: х
A54: средства федерального бюджета | BA54: х | BV54: х
A55: средства областного бюджета | BA55: х | BV55: х
A56: внебюджетные источники | BA56: х | BV56: х
A57: в том числе:
A60: доходы от операций с активами, всего | BA60: 1900 | CI60: =CI64 -> 49,700.00 | CV60: =CV64 -> 2,644.00 | DI60: =DI64 -> 0.00 | DV60: =DV64 -> 0.00
A61: из них : | BA61: х | BI61: х | BV61: х
A62: средства федерального бюджета | BA62: х | BV62: х
A63: средства областного бюджета | BA63: х | BV63: х
A64: внебюджетные источники | BA64: х | BI64: 410 | BV64: х | CI64: 49,700.00 | CV64: 2,644.00 | DI64: 0.00 | DV64: 0.00
A65: в том числе:
A68: прочие поступления, всего 4 | BA68: 1980 | BI68: х | CI68: =SUM(CI72) -> 84,738.80 | CV68: =SUM(CV72) -> 134,364.55 | DI68: =SUM(DI72) -> 0.00 | DV68: =SUM(DV72) -> 0.00 | EI68: =SUM(EI72) -> 0
A69: из них : | BA69: х | BI69: х | BV69: х
A70: средства федерального бюджета | BA70: х | BV70: х
A71: средства областного бюджета | BA71: х | BV71: х
A72: внебюджетные источники | BA72: х | BV72: х | CI72: =CI73 -> 84,738.80 | CV72: =SUM(CV73) -> 134,364.55 | DI72: =SUM(DI73) -> 0.00 | DV72: =SUM(DV73) -> 0.00 | EI72: =SUM(EI73) -> 0
A73: из них: увеличение остатков денежных средств | BA73: 1981 | BI73: 510 | BV73: х | CI73: 84,738.80 | CV73: =121330+13034.55 -> 134,364.55 | DI73: 0.00 | EI73: х
A75: Расходы, всего | BA75: 2000 | BI75: х | BV75: х | CI75: =SUM(CI80+CI96+CI108+CI135) -> 87,806,896.92 | CV75: =SUM(CV80+CV96+CV108+CV135+CV165) -> 81,781,877.27 | DI75: =SUM(DI80+DI96+DI108+DI135+DI165) -> 68,999,350.00 | DV75: =SUM(DV80+DV96+DV108+DV135) -> 76,577,371.09
A76: из них : | BA76: х | BI76: х | BV76: х
A77: средства федерального бюджета | BA77: х | BV77: х | CI77: =CI98 -> 0.00 | CV77: =CV82+CV98+CV110+CV137 -> 1,014,200.40 | DI77: =DI82+DI98+DI110+DI137 -> 0.00 | DV77: =DV98 -> 0.00
A78: средства областного бюджета | BA78: х | BV78: х | CI78: =SUM(CI83+CI99+CI111+CI138) -> 84,028,989.52 | CV78: =SUM(CV83+CV99+CV111+CV138) -> 76,224,110.02 | DI78: 64,605,020.00 | DV78: =SUM(DV83+DV99+DV111+DV138) -> 71,448,860.00
A79: внебюджетные источники | BA79: х | BV79: х | CI79: =SUM(CI84+CI100+CI112+CI139) -> 3,777,907.40 | CV79: =SUM(CV84+CV100+CV112+CV139+CV163) -> 4,543,566.85 | DI79: 4,394,330.00 | DV79: =SUM(DV84+DV100+DV112+DV139) -> 5,128,511.09
A80: в том числе: на выплаты персоналу, всего | BA80: 2100 | BI80: х | BV80: х | CI80: =SUM(CI83:CU84) -> 45,476,422.65 | CV80: =SUM(CV82:DH84) -> 50,564,753.21 | DI80: 45,255,600.00 | DV80: =SUM(DV82:EH84) -> 44,242,390.00 | EI80: х
A81: из них : | BA81: х | BI81: х | BV81: х
A82: средства федерального бюджета | BA82: х | BV82: х | CI82: 0.00 | CV82: =783973.41+230226.99 -> 1,014,200.40 | DI82: 0.00
A83: средства областного бюджета | BA83: х | BV83: х | CI83: 43,250,499.77 | CV83: =36163839.45+56054.7+61492+9770558.5+1079353.96+53551.27+35005.08+10674.52 -> 47,230,529.48 | DI83: =33223200+36100+63300+9980000 -> 43,302,600.00 | DV83: =31739120+9585220+10000+40000+202810+61240 -> 41,638,390.00
A84: внебюджетные источники | BA84: х | BV84: х | CI84: 2,225,922.88 | CV84: =1834002.72+486020.61 -> 2,320,023.33 | DI84: 1,953,000.00 | DV84: =2000000+604000 -> 2,604,000.00
A85: в том числе: оплата труда | BA85: 2110 | BI85: 111 | BV85: х | CI85: =32571835.41+1764471.97 -> 34,336,307.38 | CV85: =справочно!D54 -> 38,816,820.66 | DI85: 34,723,200.00 | DV85: =31739120+2000000+202810 -> 33,941,930.00 | EI85: х
A86: прочие выплаты персоналу, в том числе компенсационного характера | BA86: 2120 | BI86: 112 | BV86: х | CI86: =39267.66+420909.56 -> 460,177.22 | CV86: =справочно!D55 -> 1,135,408.66 | DI86: 36,100.00 | DV86: 10,000.00 | EI86: х
A87: иные выплаты, за исключением фонда оплаты труда учреждения, для выполнения отдельных полномочий | BA87: 2130 | BI87: 113 | BV87: х | CI87: 39,432.00 | CV87: =справочно!D56 -> 61,492.00 | DI87: 63,300.00 | DV87: 40,000.00 | EI87: х
A88: взносы по обязательному социальному страхованию на выплаты по оплате труда работников и иные выплаты работникам учреждений, всего | BA88: 2140 | BI88: 119 | BV88: х | CI88: =CI89 -> 10,640,506.05 | CV88: =SUM(CV89:DH95) -> 10,551,031.89 | DI88: 10,433,000.00 | DV88: =SUM(DV89:EH95) -> 10,250,460.00 | EI88: х
A89: в том числе: на выплаты по оплате труда | BA89: 2141 | BI89: 119 | BV89: х | CI89: =10179055.14+461450.91 -> 10,640,506.05 | CV89: =справочно!D58 -> 10,551,031.89 | DI89: 10,433,000.00 | DV89: =9585220+604000+61240 -> 10,250,460.00 | EI89: х
A90: на иные выплаты работникам | BA90: 2142 | BI90: 119 | BV90: х | EI90: х
A91: денежное довольствие военнослужащих и сотрудников, имеющих специальные звания | BA91: 2150 | BI91: 131 | BV91: х | EI91: х
A92: расходы на выплаты военнослужащим и сотрудникам, имеющим специальные звания, зависящие от размера денежного довольствия | BA92: 2160 | BI92: 133 | BV92: х | EI92: х
A93: иные выплаты военнослужащим и сотрудникам, имеющим специальные звания | BA93: 2170 | BI93: 134 | BV93: х | EI93: х
A94: страховые взносы на обязательное социальное страхование в части выплат персоналу, подлежащих обложению страховыми взносами | BA94: 2180 | BI94: 139 | BV94: х | EI94: х
A95: в том числе: на оплату труда стажеров | BA95: 2181 | BI95: 139 | BV95: х | EI95: х
A96: социальные и иные выплаты населению, всего | BA96: 2200 | BI96: 300 | BV96: х | CI96: =SUM(CI99+CI100+CI98) -> 9,045,093.18 | CV96: =SUM(CV98+CV99+CV100) -> 9,184,621.73 | DI96: 180,000.00 | DV96: =SUM(DV99+DV100) -> 9,010,000.00 | EI96: х
A97: из них : | BA97: х | BI97: х | BV97: х
A98: средства федерального бюджета | BA98: х | BV98: х | CI98: 0.00 | CV98: 0.00 | DI98: 0.00 | DV98: 0.00
A99: средства областного бюджета | BA99: х | BV99: х | CI99: =886.71+8923776.47 -> 8,924,663.18 | CV99: =109462.08+1877546.86+3230461.91+3859550.88 -> 9,077,021.73 | DI99: 165,000.00 | DV99: 9,000,000.00
A100: внебюджетные источники | BA100: х | BV100: х | CI100: =19630+100800 -> 120,430.00 | CV100: =92600+15000 -> 107,600.00 | DI100: 15,000.00 | DV100: 10,000.00
A101: в том числе: социальные выплаты гражданам, кроме публичных нормативных социальных выплат | BA101: 2210 | BI101: 320 | BV101: х | CI101: =CI102+CI103 -> 5,409,791.75 | CV101: =CV102+CV103 -> 5,217,470.85 | DI101: 165,000.00 | DV101: =DV102+DV103 -> 5,040,000.00 | EI101: х
A102: из них: пособия, компенсации и иные социальные выплаты гражданам, кроме публичных нормативных обязательств | BA102: 2211 | BI102: 321 | BV102: х | CI102: =2410958.7+847561.75 -> 3,258,520.45 | CV102: =справочно!D67 -> 1,987,008.94 | DI102: 165,000.00 | DV102: 2,500,000.00 | EI102: х
A103: приобретение товаров, работ,услуг в пользу граждан в целях их социального обеспечения | BI103: 323 | CI103: =1113276.3+774995+263000 -> 2,151,271.30 | CV103: =справочно!D68 -> 3,230,461.91 | DI103: =справочно!Q68 -> 0.00 | DV103: 2,540,000.00
A104: выплата стипендий, осуществление иных расходов на социальную поддержку обучающихся за счет средств стипендиального фонда | BA104: 2220 | BI104: 340 | BV104: х | CI104: =6293.14+3622508.29 -> 3,628,801.43 | CV104: =справочно!D69 -> 3,952,150.88 | DI104: =справочно!Q69 -> 0.00 | DV104: 3,960,000.00 | EI104: х
A105: иные выплаты текущего характера
A106: на премирование физических лиц за достижения в области культуры, искусства, образования, науки и техники, а также на предоставление грантов с целью поддержки проектов в области науки, культуры и искусства | BA106: 2230 | BI106: 350 | BV106: х | CI106: 6,500.00 | CV106: =справочно!D70 -> 15,000.00 | DI106: 15,000.00 | DV106: 10,000.00 | EI106: х
A107: иные выплаты населению | BA107: 2240 | BI107: 360 | BV107: х | EI107: х
A108: уплата налогов, сборов и иных платежей, всего | BA108: 2300 | BI108: 850 | BV108: х | CI108: =SUM(CI111:CU112) -> 2,618,299.59 | CV108: =SUM(CV111:DH112) -> 2,731,502.33 | DI108: 2,772,720.00 | DV108: =SUM(DV111:EH112) -> 2,769,050.00 | EI108: х
A109: из них : | BA109: х | BI109: х | BV109: х
A110: средства федерального бюджета | BA110: х | BV110: х
A111: средства областного бюджета | BA111: х | BV111: х | CI111: =1305652+1299612 -> 2,605,264.00 | CV111: =2575783.34+1717 -> 2,577,500.34 | DI111: 2,762,720.00 | DV111: 2,759,050.00
A112: внебюджетные источники | BA112: х | BV112: х | CI112: 13,035.59 | CV112: 154,001.99 | DI112: 10,000.00 | DV112: 10,000.00
A113: из них: налог на имущество организаций и земельный налог | BA113: 2310 | BI113: 851 | BV113: х | CI113: =2602105 -> 2,602,105.00 | CV113: =справочно!D74 -> 2,575,783.34 | DI113: 2,760,000.00 | DV113: =2544500+214550-3359 -> 2,755,691.00 | EI113: х
A114: иные налоги (включаемые в состав расходов) в бюджеты бюджетной системы Российской Федерации, а также государственная пошлина | BA114: 2320 | BI114: 852 | BV114: х | CI114: =3359 -> 3,359.00 | CV114: =справочно!D75 -> 1,717.00 | DI114: 2,720.00 | DV114: 3,359.00 | EI114: х
A115: уплата штрафов (в том числе административных), пеней, иных платежей | BA115: 2330 | BI115: 853 | BV115: х | CI115: =47.66+9701.44+2500+586.49 -> 12,835.59 | CV115: =справочно!D76 -> 154,001.99 | DI115: 10,000.00 | DV115: 10,000.00 | EI115: х
A116: безвозмездные перечисления организациям и физическим лицам, всего | BA116: 2400 | BI116: х | BV116: х | EI116: х
A117: из них : | BA117: х | BI117: х | BV117: х
A118: средства федерального бюджета | BA118: х | BV118: х
A119: средства областного бюджета | BA119: х | BV119: х
A120: внебюджетные источники | BA120: х | BV120: х
A121: из них: гранты, предоставляемые бюджетным учреждениям | BA121: 2410 | BI121: 613 | BV121: х | EI121: х
A122: гранты, предоставляемые автономным учреждениям | BA122: 2420 | BI122: 623 | BV122: х
A123: гранты, предоставляемые иным некоммерческим организациям (за исключением бюджетных и автономных учреждений) | BA123: 2430 | BI123: 634 | BV123: х
A124: гранты, предоставляемые другим организациям и физическим лицам | BA124: 2440 | BI124: 810 | BV124: х
A125: взносы в международные организации | BA125: 2450 | BI125: 862 | BV125: х
A126: платежи в целях обеспечения реализации соглашений с правительствами иностранных государств и международными организациями | BA126: 2460 | BI126: 863 | BV126: х | EI126: х
BV127: х
A128: прочие выплаты (кроме выплат на закупку товаров, работ, услуг) | BA128: 2500 | BI128: х | BV128: х | EI128: х
A129: из них : | BA129: х | BI129: х | BV129: х
A130: средства федерального бюджета | BA130: х | BV130: х
A131: средства областного бюджета | BA131: х | BV131: х
A132: внебюджетные источники | BA132: х | BV132: х
A133: исполнение судебных актов Российской Федерации и мировых соглашений по возмещению вреда, причиненного в результате деятельности учреждения | BA133: 2520 | BI133: 831 | BV133: х | EI133: х
A135: расходы на закупку товаров, работ, услуг, всего 5 | BA135: 2600 | BI135: х | BV135: х | CI135: =CI138+CI139 -> 30,667,081.50 | CV135: =CV138+CV139 -> 19,196,243.31 | DI135: 20,669,700.00 | DV135: =DV138+DV139 -> 20,555,931.09
A136: из них : | BA136: х | BV136: х
A137: средства федерального бюджета | BA137: х | BV137: х
A138: средства областного бюджета | BA138: х | BV138: х | CI138: =10268434.68+19741749.43-761621.54 -> 29,248,562.57 | CV138: =160760.64+26910+1036968.83+1159238.19+3852884.4+10731.86+420444.01+1027442.31+373142.96+1507434.58+89686+17959+149893+7505562.69 -> 17,339,058.47 | DI138: 18,374,700.00 | DV138: =18126560-75140 -> 18,051,420.00
A139: внебюджетные источники | BA139: х | BV139: х | CI139: 1,418,518.93 | CV139: =1061.08+104766.11+632370.35+459256.97+12999+194420.47+452310.86 -> 1,857,184.84 | DI139: 2,295,000.00 | DV139: 2,504,511.09
A140: в том числе: закупку научно-исследовательских и опытно-конструкторских работ | BA140: 2610 | BI140: 241 | BV140: х
A141: закупку товаров, работ, услуг в целях капитального ремонта государственного (муниципального) имущества | BA141: 2630 | BI141: 243 | BV141: х
A142: прочую закупку товаров, работ и услуг, всего | BA142: 2640 | BI142: 244 | BV142: х | CI142: =SUM(CI144:CU153) -> 30,667,081.50 | CV142: =SUM(CV144:DH153) -> 11,238,369.76 | DI142: 12,694,389.14 | DV142: =SUM(DV144:EH153) -> 20,555,931.09
A143: из них:
A144: услуги связи | CI144: 139,552.17 | CV144: =справочно!D94 -> 161,821.72 | DI144: 171,000.00 | DV144: =140000+3000 -> 143,000.00
A145: транспортные услуги | CI145: 281.00 | CV145: =справочно!D95 -> 26,910.00 | DI145: 27,000.00 | DV145: 1,000.00
A146: коммунальные услуги | CI146: 9,135,985.82 | CV146: =справочно!D96 -> 1,514,877.90 | DI146: 1,190,000.00 | DV146: =8630720+400000 -> 9,030,720.00
A147: арендная плата за пользование имуществом | CI147: 0.00 | CV147: =справочно!D97 -> 0.00 | DI147: =справочно!Q97 -> 0.00 | DV147: 0.00
A148: работы, услуги по содержанию имущества | CI148: 12,188,301.31 | CV148: =справочно!D98 -> 3,299,043.12 | DI148: 1,816,000.00 | DV148: =2775060+700000 -> 3,475,060.00
A149: прочие работы, услуги | CI149: 7,637,762.23 | CV149: =справочно!D99 -> 4,401,827.37 | DI149: 3,970,300.00 | DV149: =5000000+800000 -> 5,800,000.00
A150: страхование | CI150: 0.00 | CV150: =справочно!D100 -> 10,731.86 | DI150: 10,000.00 | DV150: 0.00
A151: иные выплаты текущего характера | CI151: 0.00 | CV151: 0.00 | DI151: 0.00 | DV151: 0.00
A152: увеличение стоимости основных средств | CI152: 702,553.17 | CV152: =справочно!D101 -> 451,402.01 | DI152: 2,800,000.00 | DV152: =600000+300000 -> 900,000.00
A153: увеличение стоимости материальных запасов | CI153: =38406.57+166095.95+108776.76+136847.38+1639+335030.14+75850 -> 862,645.80 | CV153: =справочно!D102 -> 1,371,755.78 | DI153: 2,710,089.14 | DV153: =1331291.09-50000-75140 -> 1,206,151.09
A154: закупку энергетических ресурсов | BA154: 2650 | BI154: 247 | BV154: х | CI154: 0.00 | CV154: =справочно!D106 -> 7,957,873.55 | DI154: 7,975,310.86 | DV154: 0.00
A155: капитальные вложения в объекты государственной (муниципальной) собственности, всего | BA155: 2660 | BI155: 400 | BV155: х
A156: в том числе: приобретение объектов недвижимого имущества государственными (муниципальными) учреждениями | BA156: 2661 | BI156: 406 | BV156: х
A157: строительство (реконструкция) объектов недвижимого имущества государственными (муниципальными) учреждениями | BA157: 2662 | BI157: 407 | BV157: х
BA158: 2660 | BV158: х
A159: Выплаты, уменьшающие доход, всего 6 | BA159: 3000 | BI159: 100 | BV159: х | CI159: =SUM(CI160) -> -27,233.00 | CV159: =SUM(CV160) -> -82,847.00 | DI159: =SUM(DI160) -> -80,000.00 | DV159: =SUM(DV160) -> -45,000.00 | EI159: х
A160: в том числе: налог на прибыль 6 | BA160: 3010 | BI160: 180 | BV160: х | CI160: -27,233.00 | CV160: -82,847.00 | DI160: -80,000.00 | DV160: -45,000.00 | EI160: х
A161: налог на добавленную стоимость 6 | BA161: 3020 | BV161: х | EI161: х
A162: прочие налоги, уменьшающие доход 6 | BA162: 3030 | BV162: х | EI162: х
A163: Прочие выплаты, всего ⁷ | BA163: 4000 | BI163: х | BV163: х | CI163: =SUM(CI165) -> 0.00 | CV163: =SUM(CV165) -> 104,756.69 | DI163: =SUM(DI165) -> 121,330.00 | DV163: =SUM(DV165) -> 0.00 | EI163: х
A164: из них: возврат в бюджет средств субсидии | BA164: 4010 | BI164: 610 | BV164: х | EI164: х
A165: уменьшение остатков денежных средств | CI165: 0.00 | CV165: =84738.8+20017.89 -> 104,756.69 | DI165: 121,330.00
A166: в том числе: за счет средств федерального бюджета | EI166: х
A167: за счет средств областного бюджета | EI167: х
A169: _____2_В графе 3 отражаются:
A170: _____по строкам 1100 - 1900 - коды аналитической группы подвида доходов бюджетов классификации доходов бюджетов;
A171: _____по строкам 1980 - 1990 - коды аналитической группы вида источников финансирования дефицитов бюджетов классификации источников финансирования дефицитов бюджетов;
A172: _____по строкам 2000 - 2652 - коды видов расходов бюджетов классификации расходов бюджетов;
A173: _____по строкам 3000 - 3030 - коды аналитической группы подвида доходов бюджетов классификации доходов бюджетов, по которым планируется уплата налогов, уменьшающих доход (в том числе налог на прибыль, налог на добавленную стоимость, единый налог на вмененный доход для отдельных видов деятельности);
A174: _____по строкам 4000 - 4040 - коды аналитической группы вида источников финансирования дефицитов бюджетов классификации источников финансирования дефицитов бюджетов.
A175: _____3_По строкам 0001 и 0002 указываются планируемые суммы остатков средств на начало и на конец планируемого года, если указанные показатели по решению органа, осуществляющего функции и полномочия учредителя, планируются на этапе формирования проекта Плана либо указываются фактические остатки средств при внесении изменений в утвержденный План после завершения отчетного финансового года.
A176: _____4_Показатели прочих поступлений включают в себя в том числе показатели увеличения денежных средств за счет возврата дебиторской задолженности прошлых лет, включая возврат предоставленных займов (микрозаймов), а также за счет возврата средств, размещенных на банковских депозитах. При формировании Плана (проекта Плана) обособленному(ым) подразделению(ям) показатель прочих поступлений включает показатель поступлений в рамках расчетов между головным учреждением и обособленным подразделением.
A177: _____5_Показатели выплат по расходам на закупки товаров, работ, услуг, отраженные в строке 2600 Раздела 1 "Поступления и выплаты" Плана, подлежат детализации в Разделе 2 "Сведения по выплатам на закупку товаров, работ, услуг" Плана.
A178: _____6_Показатель отражается со знаком "минус".
A179: _____7_Показатели прочих выплат включают в себя в том числе показатели уменьшения денежных средств за счет возврата средств субсидий, предоставленных до начала текущего финансового года, предоставления займов (микрозаймов), размещения автономными учреждениями денежных средств на банковских депозитах. При формировании Плана (проекта Плана) обособленному(ым) подразделению(ям) показатель прочих выплат включает показатель поступлений в рамках расчетов между головным учреждением и обособленным подразделением.

Sheet справочно
A1: Справочно к разделу 1. Поступления и выплаты
A2: на 2021 текущий финансовый год
A4: Наименование показателя | B4: Код строки | C4: Код по бюджетной классификации Российской Федерации | D4: Сумма, руб. ( с точностью до двух знаков после запятой. 0,00)
D5: Всего | E5: Субсидии на финансовое обеспечение выполнения государственного (муниципального) задания | F5: Субсидии, предоставляемые в соответствии с абзацем вторым пункта 1 статьи 78.1 БК РФ | G5: Субсидии на осуществление капитальных вложений | H5: Поступления от оказания услуг (выполнения работ) на платной основе и от иной приносящей доход деятельности
H6: Всего | I6: в том числе гранты
A7: 1 | B7: 2 | C7: 3 | D7: 4 | E7: 5 | F7: 6 | G7: 7 | H7: 8 | I7: 9
A8: Остаток средств на начало текущего финансового года | B8: =раздел.1_!BA8 -> 0001 | C8: х | D8: =SUM(D10+D11+D12) -> 846,364.68 | E8: =SUM(E10) -> 0.00 | F8: =SUM(F10+F11) -> 761,621.54 | G8: 0.00 | H8: =SUM(H10+H12) -> 84,743.14 | I8: 0.00
A9: в том числе:
A10: внебюджетные источники | C10: 131 | D10: =SUM(E10:H10) -> 4.34 | H10: 4.34
A11: субсидия на иные цели | C11: 244 | D11: =F11 -> 761,621.54 | F11: 761,621.54
A12: средства во временном распоряжении | C12: 510 | D12: 84,738.80 | H12: 84,738.80
A13: Доходы, всего: | B13: 1000 | C13: х | D13: =SUM(E13:H13) -> 81,142,689.59 | E13: =SUM(E14+E16+E29+E32+E43+E46+E49) -> 63,939,850.00 | F13: =SUM(F34) -> 12,536,838.88 | H13: =SUM(H14+H16+H29+H32+H44+H47+H51) -> 4,666,000.71 | I13: =SUM(I14+I16+I29+I32+I43+I46+I49) -> 89,600.00
A14: в том числе: доходы от собственности, всего | B14: 1100 | C14: 120 | D14: =SUM(E14:H14) -> 1,283,120.06 | E14: =SUM(E15) -> 0.00 | F14: =SUM(F15) -> 0.00 | H14: =SUM(H15) -> 1,283,120.06
A15: в т.ч. внебюджетные источники | B15: 1101 | C15: 121 | D15: =SUM(E15:H15) -> 1,283,120.06 | H15: 1,283,120.06
A16: доходы от оказания услуг, работ, компенсации затрат учреждений, всего | B16: 1200 | C16: 130 | D16: 66,936,313.15 | E16: =SUM(E17) -> 63,939,850.00 | F16: =SUM(F17:F26) -> 0.00 | H16: =SUM(H26:H28) -> 2,996,463.15
A17: в том числе: субсидии на финансовое обеспечение выполнения государственного (муниципального) задания за счет средств бюджета публично-правового образования, создавшего учреждение | B17: 1201 | C17: 131 | D17: 63,939,850.00 | E17: 63,939,850.00
A18: Реализация образовательных программ среднего профессионального образования - программ подготовки квалифицированных рабочих, служащих | B18: 1202 | C18: 131 | D18: 49,568,143.00 | E18: 49,568,143.00
A19: Реализация образовательных программ среднего профессионального образования - программ подготовки специалистов среднего звена | B19: 1203 | C19: 131 | D19: 38,842,911.00 | E19: 38,842,911.00
A20: Реализация основных профессиональных образовательных программ профессионального обучения - программ профессиональной подготовки по професиям рабочих, должностям служащих (адаптированная программа) | B20: 1204 | C20: 131 | D20: 4,087,560.00 | E20: 4,087,560.00
A21: Реализация основных профессиональных образовательных программ профессионального обучения - программ профессиональной подготовки по профессиям рабочих, должностям служащих (профессиональное обучение школьников) | B21: 1205 | C21: 131 | D21: 473,406.00 | E21: 473,406.00
A22: Предоставление питания | B22: 1206 | C22: 131 | D22: 4,855,667.00 | E22: 4,855,667.00
A23: Проживание в общежитии | B23: 1207 | C23: 131 | D23: 3,658,836.00 | E23: 3,658,836.00
A24: Организация деятельности специализированного центра компетенций | B24: 1208 | C24: 131 | D24: 202,406.00 | E24: 202,406.00
A25: Организация деятельности многофункционального центра прикладных квалификаций в профессиональных образовательных организациях | B25: 1209 | C25: 131 | D25: 1,556,215.00 | E25: 1,556,215.00
A26: внебюджетные источники | B26: 1210 | C26: 131 | D26: 2,216,451.95 | H26: =910397+777240.95+276364+252450 -> 2,216,451.95
A27: внебюджетные источники | B27: 1211 | C27: 134 | D27: =SUM(E27:H27) -> 25,074.55 | H27: 25,074.55
A28: внебюджетные источники | B28: 1212 | C28: 135 | D28: 754,936.65 | H28: 754,936.65
A29: доходы от штрафов, пеней, иных сумм принудительного изъятия, всего | B29: 1300 | D29: 159,808.95 | H29: =SUM(H31) -> 159,808.95
A30: в том числе: | D30: 0.00
A31: внебюджетные источники | B31: 1301 | C31: 140 | D31: 159,808.95 | H31: 159,808.95
A32: безвозмездные денежные поступления, всего | B32: 1400 | C32: 150 | D32: =SUM(D34+D42) -> 12,626,438.88 | E32: =SUM(E34) -> 0.00 | F32: =SUM(F34) -> 12,536,838.88 | G32: =SUM(G34) -> 0.00 | H32: =SUM(H42) -> 89,600.00 | I32: =SUM(I42) -> 89,600.00
A33: в том числе: | D33: 0.00
A34: субсидии на иные цели | C34: 152 | D34: =SUM(D35:D41) -> 12,536,838.88 | F34: =SUM(F35:F41) -> 12,536,838.88
A35: Выплата стипендии обучающимся по очной форме обучения в учреждениях среднего профессионального образования | C35: 152 | D35: 3,859,550.88 | F35: 3,859,550.88
A36: Обеспечение комплексной безопасности организаций образования: устранение предписаний надзорных органов (ГПН, РПН) | C36: 152 | D36: 1,376,494.00 | F36: 1,376,494.00
A37: Предоставление бесплатного питания отдельным категориям обучающихся организаций профессионального образования | C37: 152 | D37: 1,560,000.00 | F37: 1,560,000.00
A38: Оплата стоимости проезда и провоза багажа к месту использования отпуска (отдыха) и обратно | C38: 152 | D38: 1,132,905.23 | F38: 1,132,905.23
A39: Содержание детей-сирот, детей, оставшихся без попечения родителей, лиц из их числа в государственных областных профессиональных организациях | C39: 152 | D39: 3,548,008.77 | F39: 3,548,008.77
A40: Выплата ежемесячного денежного вознаграждения за классное руководство (кураторство) педагогическим работникам государственных образовательных организаций, реализующих образовательные программы среднего профессионального образования, в том числе программы профессионального обучения для лиц с ограниченными возможностями здоровья (за счет средств резервного фонда Правительства Мурманской области) | C40: 152 | D40: =F40 -> 45,679.60 | F40: 45,679.60
A41: Выплата ежемесячного денежного вознаграждения за классное руководство (кураторство) педагогическим работникам государственных образовательных организаций, реализующих образовательные программы среднего профессионального образования, в том числе программы профессионального обучения для лиц с ограниченными возможностями здоровья | C41: 152 | D41: =F41 -> 1,014,200.40 | F41: 1,014,200.40
A42: Стипендия Правительства РФ | C42: 152 | D42: =SUM(E42:H42) -> 89,600.00 | H42: 89,600.00 | I42: =H42 -> 89,600.00
A43: прочие доходы, всего | B43: 1500 | D43: 0.00
A44: в том числе: | C44: 180 | D44: 0.00
D45: 0.00
A46: доходы от операций с активами, всего | B46: 1900 | D46: 0.00
A47: в том числе: | C47: 410 | D47: 2,644.00 | H47: 2,644.00
D48: 0.00
A49: прочие поступления, всего | B49: 1980 | D49: 0.00
A50: в том числе: | D50: 0.00
A51: обеспечение контрактов | C51: 510 | D51: 134,364.55 | H51: =13034.55+121330 -> 134,364.55
A52: Расходы, всего | B52: 2000 | C52: х | D52: =SUM(E52:H52) -> 81,781,877.27 | E52: =SUM(E53+E57+E65+E72+E92+E106) -> 63,939,850.00 | F52: =SUM(F53+F57+F65+F72+F89) -> 13,298,460.42 | H52: =SUM(H53+H57+H65+H72+H92+H106+H111) -> 4,543,566.85 | I52: =SUM(I53+I57+I65+I72+I92) -> 89,600.00
A53: в том числе: на выплаты персоналу, всего | B53: 2100 | C53: х | D53: =SUM(D54:D56) -> 40,013,721.32 | E53: =SUM(E54:E56) -> 36,281,386.15 | F53: =SUM(F54:F56) -> 1,898,332.45 | H53: =SUM(H54:H56) -> 1,834,002.72
A54: в том числе: оплата труда | B54: 2110 | C54: 111 | D54: =SUM(E54:H54) -> 38,816,820.66 | E54: 36,163,839.45 | F54: =765652.74+34802.39+18320.67+202.69 -> 818,978.49 | H54: 1,834,002.72
A55: прочие выплаты персоналу, в том числе компенсационного характера | B55: 2120 | C55: 112 | D55: =SUM(E55:H55) -> 1,135,408.66 | E55: 56,054.70 | F55: 1,079,353.96 | H55: 0.00
A56: иные выплаты, за исключением фонда оплаты труда учреждения, для выполнения отдельных полномочий | B56: 2130 | C56: 113 | D56: 61,492.00 | E56: 61,492.00 | H56: 0.00
A57: взносы по обязательному социальному страхованию на выплаты по оплате труда работников и иные выплаты работникам учреждений, всего | B57: 2140 | C57: х | D57: 10,551,031.89 | E57: =SUM(E58:E64) -> 9,770,558.50 | F57: =SUM(F58:F64) -> 294,452.78 | H57: =H58 -> 486,020.61
A58: в том числе: на выплаты по оплате труда | B58: 2141 | C58: 119 | D58: 10,551,031.89 | E58: 9,770,558.50 | F58: =230226.99+10464.87+209.65+53551.27 -> 294,452.78 | H58: 486,020.61
A59: на иные выплаты работникам | B59: 2142 | D59: 0.00
A60: денежное довольствие военнослужащих и сотрудников, имеющих специальные звания | B60: 2150 | D60: 0.00
A61: расходы на выплаты военнослужащим и сотрудникам, имеющим специальные звания, зависящие от размера денежного довольствия | B61: 2160 | D61: 0.00
A62: иные выплаты военнослужащим и сотрудникам, имеющим специальные звания | B62: 2170 | D62: 0.00
A63: страховые взносы на обязательное социальное страхование в части выплат персоналу, подлежащих обложению страховыми взносами | B63: 2180 | D63: 0.00
A64: в том числе: на оплату труда стажеров | B64: 2181 | D64: 0.00
A65: социальные и иные выплаты населению, всего | B65: 2200 | C65: х | D65: 9,184,621.73 | E65: =SUM(E66:E71) -> 109,462.08 | F65: =SUM(F66:F71) -> 8,967,559.65 | H65: =SUM(H66:H71) -> 107,600.00 | I65: =SUM(I66:I71) -> 89,600.00
A66: в том числе: социальные выплаты гражданам, кроме публичных нормативных социальных выплат | B66: 2210 | D66: 0.00
A67: из них: пособия, компенсации и иные социальные выплаты гражданам, кроме публичных нормативных обязательств | B67: 2211 | C67: 321 | D67: 1,987,008.94 | E67: 109,462.08 | F67: =225732+1651814.86 -> 1,877,546.86 | H67: 0.00
A68: приобретение товаров, работ,услуг в пользу граждан в целях их социального обеспечения | C68: 323 | D68: 3,230,461.91 | E68: 0.00 | F68: =1334268+1896193.91 -> 3,230,461.91 | H68: 0.00
A69: выплата стипендий, осуществление иных расходов на социальную поддержку обучающихся за счет средств стипендиального фонда | B69: 2220 | C69: 340 | D69: 3,952,150.88 | E69: 0.00 | F69: =3853599.36+5951.52 -> 3,859,550.88 | H69: =89600+3000 -> 92,600.00 | I69: 89,600.00
A70: на премирование физических лиц за достижения в области культуры, искусства, образования, науки и техники, а также на предоставление грантов с целью поддержки проектов в области науки, культуры и искусства | B70: 2230 | C70: 350 | D70: 15,000.00 | E70: 0.00 | F70: 0.00 | H70: 15,000.00
A71: иные выплаты населению | B71: 2240 | D71: 0.00
A72: уплата налогов, сборов и иных платежей, всего | B72: 2300 | C72: х | D72: 2,731,502.33 | E72: =SUM(E74:E76) -> 2,577,500.34 | F72: =SUM(F74:F76) -> 0.00 | H72: =SUM(H74:H76) -> 154,001.99 | I72: =SUM(I74:I76) -> 0.00
A73: в том числе: | D73: 0.00
A74: налог на имущество организаций и земельный налог | B74: х | C74: 851 | D74: 2,575,783.34 | E74: 2,575,783.34 | F74: 0.00 | H74: 0.00
A75: иные налоги (включаемые в состав расходов) в бюджеты бюджетной системы Российской Федерации, а также государственная пошлина | B75: х | C75: 852 | D75: 1,717.00 | E75: 1,717.00 | F75: 0.00 | H75: 0.00
A76: уплата штрафов (в том числе административных), пеней, иных платежей | B76: х | C76: 853 | D76: 154,001.99 | E76: 0.00 | F76: 0.00 | H76: =33672.67+29612+90640.13+77.19 -> 154,001.99
A77: безвозмездные перечисления организациям и физическим лицам, всего
A78: в том числе:
A79: гранты, предоставляемые бюджетным учреждениям | B79: 2410
A80: гранты, предоставляемые автономным учреждениям | B80: 2420
A81: гранты, предоставляемые иным некоммерческим организациям (за исключением бюджетных и автономных учреждений) | B81: 2430
A82: гранты, предоставляемые другим организациям и физическим лицам | B82: 2440
A83: взносы в международные организации | B83: 2450
A84: платежи в целях обеспечения реализации соглашений с правительствами иностранных государств и международными организациями | B84: 2460
A85: прочие выплаты (кроме выплат на закупку товаров, работ, услуг) | B85: 2500 | C85: х
A86: в том числе :
A87: исполнение судебных актов Российской Федерации и мировых соглашений по возмещению вреда, причиненного в результате деятельности учреждения | B87: 2520
A89: расходы на закупку товаров, работ, услуг, всего | B89: 2600 | C89: х | D89: =SUM(D90:D91) -> 0.00 | E89: =E92 -> 7,695,380.24 | F89: =SUM(F91+F92) -> 2,138,115.54 | H89: =H92 -> 1,404,873.98
A90: в том числе: закупку научно-исследовательских и опытно-конструкторских работ | B90: 2610
A91: закупку товаров, работ, услуг в целях капитального ремонта государственного (муниципального) имущества | B91: 2630 | D91: =SUM(E91:H91) -> 0.00
A92: прочую закупку товаров, работ и услуг, всего | B92: 2640 | C92: х | D92: =SUM(D94:D102) -> 11,238,369.76 | E92: =SUM(E93:E102) -> 7,695,380.24 | F92: =SUM(F93:F102) -> 2,138,115.54 | H92: =SUM(H93:H102) -> 1,404,873.98
A93: в том числе:
A94: услуги связи | C94: 244 | D94: =SUM(E94:H94) -> 161,821.72 | E94: 160,760.64 | F94: 0.00 | H94: 1,061.08
A95: транспортные услуги | C95: 244 | D95: =SUM(E95:H95) -> 26,910.00 | E95: 26,910.00 | F95: 0.00 | H95: 0.00
A96: коммунальные услуги | C96: 244 | D96: 1,514,877.90 | E96: 1,036,968.83 | F96: 373,142.96 | H96: 104,766.11
A97: арендная плата за пользование имуществом | C97: 244 | D97: 0.00 | E97: 0.00 | F97: 0.00 | H97: 0.00
A98: работы, услуги по содержанию имущества | C98: 244 | D98: 3,299,043.12 | E98: 1,159,238.19 | F98: =130940.58+1376494 -> 1,507,434.58 | H98: 632,370.35
A99: прочие работы, услуги | C99: 244 | D99: 4,401,827.37 | E99: 3,852,884.40 | F99: 89,686.00 | H99: 459,256.97
A100: страхование | C100: 244 | D100: 10,731.86 | E100: 10,731.86 | F100: 0.00 | H100: 0.00
A101: увеличение стоимости основных средств | C101: 244 | D101: 451,402.01 | E101: 420,444.01 | F101: 17,959.00 | H101: 12,999.00
A102: увеличение стоимости материальных запасов | C102: 244 | D102: 1,371,755.78 | E102: 1,027,442.31 | F102: 149,893.00 | H102: =175335.47+10585+8500 -> 194,420.47
A103: капитальные вложения в объекты государственной (муниципальной) собственности, всего | B103: 2650 | C103: х
A104: в том числе: приобретение объектов недвижимого имущества государственными (муниципальными) учреждениями | B104: 2651
A105: строительство (реконструкция) объектов недвижимого имущества государственными (муниципальными) учреждениями | B105: 2652 | C105: 243
A106: закупку энергетических ресурсов | B106: 2660 | C106: 247 | D106: =E106+F106+H106 -> 7,957,873.55 | E106: 7,505,562.69 | H106: 452,310.86
A107: Выплаты, уменьшающие доход, всего | B107: 3000 | C107: х | D107: =SUM(D108:D110) -> -82,847.00 | H107: =SUM(H108:H110) -> -82,847.00
A108: в том числе: налог на прибыль | B108: 3010 | C108: 180 | D108: =SUM(E108:H108) -> -82,847.00 | H108: -82,847.00
A109: налог на добавленную стоимость | B109: 3020
A110: прочие налоги, уменьшающие доход | B110: 3030
A111: Прочие выплаты, всего | B111: 4000 | C111: х | D111: =SUM(D112:D113) -> 104,756.69 | H111: =SUM(H112:H113) -> 104,756.69
A112: в том числе:
A113: обеспечение контрактов | C113: 610 | D113: =SUM(E113:H113) -> 104,756.69 | H113: =84738.8+20017.89 -> 104,756.69
A114: Остаток средств на конец текущего финансового года | B114: 0002 | D114: =SUM(D116+D117) -> 124,330.00 | H114: =SUM(H116+H117) -> 124,330.00
A115: в том числе:
A116: внебюджетные источники | C116: 131 | D116: =H116 -> 3,000.00 | H116: =H10+H14+H16+H31+H32+H47-H54-H57-H65-H72-H89-H106+H107-6983.34 -> 3,000.00
C117: 510 | D117: =H117 -> 121,330.00 | H117: =H12+H51-H113+6983.34 -> 121,330.00

Sheet раздел. 2_
B1: Раздел 2. Сведения по выплатам на закупки товаров, работ, услуг
A3: № п/п | H3: Наименование показателя | CL3: Коды строк | CT3: Год начала закупки | DB3: Код по бюджетной классификации Российской Федерации 8 | DN3: Сумма, руб. ( с точностью до двух знаков после запятой. 0,00)
DN4: на 20 | DT4: 20 | DW4: г. | DZ4: на 20 | EF4: 21 | EI4: г. | EL4: на 20 | ER4: 22 | EU4: г. | EX4: на 20 | FD4: 23 | FG4: г. | FJ4: за пределами планового периода
DN5: (отчетный финансовый год) | DZ5: (текущий финансовый год) | EL5: (1-ый год планового периода) | EX5: (2-ой год планового периода)
A6: 1 | H6: 2 | CL6: 3 | CT6: 4 | DB6: 4.1 | DN6: 5 | DZ6: 6 | EL6: 7 | EX6: 8 | FJ6: 9
A7: 1 | H7: Выплаты на закупку товаров, работ, услуг, всего ⁹ | CL7: 26000 | CT7: х | DN7: =2151271.3+30667081.5 -> 32,818,352.80 | DZ7: =2538290.99+21465424.56 -> 24,003,715.55 | EL7: =2540000+20631071.09 -> 23,171,071.09 | EX7: =2540000+20631071.09 -> 23,171,071.09
A8: 1.1 | H8: в том числе: по контрактам (договорам), заключенным до начала текущего финансового года без применения норм Федерального закона от 5 апреля 2013 г. № 44-ФЗ "О контрактной системе в сфере закупок товаров, работ, услуг для обеспечения государственных и муниципальных нужд" (Собрание законодательства Российской Федерации, 2013, № 14, ст. 1652; 2018, № 32, ст. 5104) (далее - Федеральный закон № 44-ФЗ) и Федерального закона от 18 июля 2011 г. № 223-ФЗ "О закупках товаров, работ, услуг отдельными видами юридических лиц" (Собрание законодательства Российской Федерации, 2011, № 30, ст. 4571; 2018, № 32, ст. 5135) (далее - Федеральный закон № 223-ФЗ)10 | CL8: 26100 | CT8: х
A9: 1.2 | H9: по контрактам (договорам), планируемым к заключению в соответствующем финансовом году без применения норм Федерального закона № 44-ФЗ и Федерального закона № 223-ФЗ 10 | CL9: 26200 | CT9: х
A10: 1.3 | H10: по контрактам (договорам), заключенным до начала текущего финансового года с учетом требований Федерального закона № 44-ФЗ и Федерального закона № 223-ФЗ 11 | CL10: 26300 | CT10: х | DN10: =DN11+DN12 -> 1,655,511.96 | DZ10: =DZ11+DZ12 -> 3,190,703.71 | EL10: =EL11+EL12 -> 3,300,000.00 | EX10: =EX11+EX12 -> 3,300,000.00
CT11: х | DB11: 323 | DN11: =112769.6+474910+192010+135640+267380.79+55600+109391.57 -> 1,347,701.96 | DZ11: =176074+70180+95095+246335.7+198350+843151.06+276494.95+559793 -> 2,465,473.71 | EL11: 2,500,000.00 | EX11: 2,500,000.00
CT12: х | DB12: 244 | DN12: =35000+36000+99810+7500+129500 -> 307,810.00 | DZ12: =99900+24000+183330+48000+96000+150000+63000+61000 -> 725,230.00 | EL12: 800,000.00 | EX12: 800,000.00
DB13: 247 | DN13: 0.00 | DZ13: =1250000+8285324.09+399961.07 -> 9,935,285.16 | EL13: 10,000,000.00 | EX13: 10,000,000.00
A14: 1.3.1 | H14: в том числе: в соответствии с Федеральным законом № 44-ФЗ | CL14: 26310 | CT14: х | DB14: х
H15: из них 8: | CL15: 26310.1
A16: 1.3.2 | H16: в соответствии с Федеральным законом № 223-ФЗ | CL16: 26320 | CT16: х | DB16: х | DN16: =DN17+DN18 -> 1,655,511.96 | DZ16: =DZ17+DZ18 -> 3,190,703.71 | EL16: =EL17+EL18 -> 3,300,000.00 | EX16: =EX17+EX18 -> 3,300,000.00
CT17: х | DB17: 323 | DN17: =112769.6+474910+192010+135640+267380.79+55600+109391.57 -> 1,347,701.96 | DZ17: =176074+70180+95095+246335.7+198350+843151.06+276494.95+559793 -> 2,465,473.71 | EL17: 2,500,000.00 | EX17: 2,500,000.00
CT18: х | DB18: 244 | DN18: =35000+36000+99810+7500+129500 -> 307,810.00 | DZ18: =99900+24000+183330+48000+96000+150000+63000+61000 -> 725,230.00 | EL18: 800,000.00 | EX18: 800,000.00
DB19: 247 | DN19: 0.00 | DZ19: =1250000+8285324.09+399961.07 -> 9,935,285.16 | EL19: 10,000,000.00 | EX19: 10,000,000.00
A20: 1.4 | H20: по контрактам (договорам), планируемым к заключению в соответствующем финансовом году с учетом требований Федерального закона № 44-ФЗ и Федерального закона № 223-ФЗ 11 | CL20: 26400 | CT20: х | DB20: 2,4,5 | DN20: =DN7-DN10 -> 31,162,840.84 | DZ20: =DZ7-DZ10 -> 20,813,011.84 | EL20: =EL7-EL10 -> 19,871,071.09 | EX20: =EX7-EX10 -> 19,871,071.09
A21: 1.4.1 | H21: в том числе: за счет субсидий, предоставляемых на финансовое обеспечение выполнения государственного (муниципального) задания | CL21: 26410 | CT21: х | DN21: =DN22 -> 10,268,434.68 | DZ21: =DZ22+DZ23 -> 18,013,723.00 | EL21: =EL22+EL23 -> 13,928,071.09 | EX21: =EX22+EX23 -> 13,928,071.09
DB22: 244 | DN22: 10,268,434.68 | DZ22: 9,714,953.00 | EL22: 5,297,351.09 | EX22: 5,297,351.09
DB23: 247 | DN23: 0.00 | DZ23: 8,298,770.00 | EL23: 8,630,720.00 | EX23: 8,630,720.00
A24: 1.4.1.1 | H24: в том числе: в соответствии с Федеральным законом № 44-ФЗ | CL24: 26411 | CT24: х
A25: 1.4.1.2 | H25: в соответствии с Федеральным законом № 223-ФЗ 12 | CL25: 26412 | CT25: х | DN25: =DN21 -> 10,268,434.68 | DZ25: =DZ21 -> 18,013,723.00 | EL25: =EL21 -> 13,928,071.09 | EX25: =EX21 -> 13,928,071.09
A26: 1.4.2 | H26: за счет субсидий, предоставляемых в соответствии с абзацем вторым пункта 1 статьи 78.1 Бюджетного кодекса Российской Федерации | CL26: 26420 | CT26: х | DN26: =10446293.65+5553960+180000-DN11 -> 14,832,551.69 | DZ26: 7,000,000.00 | EL26: 7,100,000.00 | EX26: 7,100,000.00
DB27: 323 | DN27: =5553960-DN11 -> 4,206,258.04 | DZ27: =5553960-DZ11 -> 3,088,486.29 | EL27: =5553960-EL11 -> 3,053,960.00 | EX27: =5553960-EX11 -> 3,053,960.00
DB28: 244 | DN28: =DN26-DN27 -> 10,626,293.65 | DZ28: =DZ26-DZ27 -> 3,911,513.71 | EL28: =EL26-EL27 -> 4,046,040.00 | EX28: =EX26-EX27 -> 4,046,040.00
A29: 1.4.2.1 | H29: в том числе: в соответствии с Федеральным законом № 44-ФЗ | CL29: 26421 | CT29: х
H30: из них 8: | CL30: 26321.1
A31: 1.4.2.2 | H31: в соответствии с Федеральным законом № 223-ФЗ 12 | CL31: 26422 | CT31: х
A32: 1.4.3 | H32: за счет субсидий, предоставляемых на осуществление капитальных вложений 13 | CL32: 26430 | CT32: х
H33: из них 8: | CL33: 26430.1
A34: № п/п | H34: Наименование показателя | CL34: Коды строк | CT34: Год начала закупки | DB34: Код по бюджетной классификации Российской Федерации 8 | DN34: Сумма, руб. ( с точностью до двух знаков после запятой. 0,00)
DN35: на 20 | DW35: г. | DZ35: на 20 | EI35: г. | EL35: на 20 | EU35: г. | EX35: на 20 | FG35: г. | FJ35: за пределами планового периода
DN36: (текущий финансовый год) | DZ36: (текущий финансовый год) | EL36: (первый год планового периода) | EX36: (второй год планового периода)
A37: 1 | H37: 2 | CL37: 3 | CT37: 4 | DB37: 4.1 | DN37: 5 | DZ37: 5 | EL37: 6 | EX37: 7 | FJ37: 8
A38: 1.4.4 | H38: за счет средств обязательного медицинского страхования | CL38: 26440 | CT38: х
A39: 1.4.4.1 | H39: в том числе: в соответствии с Федеральным законом № 44-ФЗ | CL39: 26441 | CT39: х
A40: 1.4.4.2 | H40: в соответствии с Федеральным законом № 223-ФЗ 12 | CL40: 26442 | CT40: х
A41: 1.4.5 | H41: за счет прочих источников финансового обеспечения | CL41: 26450 | CT41: х
A42: 1.4.5.1 | H42: в том числе: в соответствии с Федеральным законом № 44-ФЗ | CL42: 26451 | CT42: х
H43: из них 8: | CL43: 26451.1
A44: 1.4.5.2 | H44: в соответствии с Федеральным законом № 223-ФЗ | CL44: 26452 | CT44: х
A45: 2 | H45: Итого по контрактам, планируемым к заключению в соответствующем финансовом году в соответствии с Федеральным законом № 44-ФЗ, по соответствующему году закупки 14 | CL45: 26500 | CT45: х
H46: в том числе по году начала закупки: | CL46: 26510
A48: 3 | H48: Итого по договорам, планируемым к заключению в соответствующем финансовом году в соответствии с Федеральным законом № 223-ФЗ, по соответствующему году закупки | CL48: 26600 | CT48: х
H49: в том числе по году начала закупки: | CL49: 26610
A52: _____8_В случаях, если учреждению предоставляются субсидия на иные цели, субсидия на осуществление капитальных вложений или грант в форме субсидии в соответствии с абзацем первым пункта 4 статьи 78.1 Бюджетного кодекса Российской Федерации в целях достижения результатов федерального проекта, в том числе входящего в состав соответствующего национального проекта (программы), определенного Указом Президента Российской Федерации от 7 мая 2018 г. № 204 "О национальных целях и стратегических задачах развития Российской Федерации на период до 2024 года" (Собрание законодательства Российской Федерации, 2018, № 20, ст. 2817; № 30, ст. 4717), или регионального проекта, обеспечивающего достижение целей, показателей и результатов федерального проекта (далее - региональный проект), показатели строк 26310, 26421, 26430 и 26451 Раздела 2 "Сведения по выплатам на закупку товаров, работ, услуг" детализируются по коду целевой статьи (8 - 17 разряды кода классификации расходов бюджетов, при этом в рамках реализации регионального проекта в 8 - 10 разрядах могут указываться нули).
A53: _____9_Плановые показатели выплат на закупку товаров, работ, услуг по строке 26000 Раздела 2 "Сведения по выплатам на закупку товаров, работ, услуг" Плана распределяются на выплаты по контрактам (договорам), заключенным (планируемым к заключению) в соответствии с гражданским законодательством Российской Федерации (строки 26100 и 26200), а также по контрактам (договорам), заключаемым в соответствии с требованиями законодательства Российской Федерации и иных нормативных правовых актов о контрактной системе в сфере закупок товаров, работ, услуг для государственных и муниципальных нужд, с детализацией указанных выплат по контрактам (договорам), заключенным до начала текущего финансового года (строка 26300) и планируемым к заключению в соответствующем финансовом году (строка 26400) и должны соответствовать показателям соответствующих граф по строке 2600 Раздела 1 "Поступления и выплаты" Плана.
A54: _____10_Указывается сумма договоров (контрактов) о закупках товаров, работ, услуг, заключенных без учета требований Федерального закона № 44-ФЗ и Федерального закона № 223-ФЗ, в случаях, предусмотренных указанными федеральными законами.
A55: _____11_Указывается сумма закупок товаров, работ, услуг, осуществляемых в соответствии с Федеральным законом № 44-ФЗ и Федеральным законом № 223-ФЗ.
A56: _____12_Государственным (муниципальным) бюджетным учреждением показатель не формируется.
A57: _____13 -Указывается сумма закупок товаров, работ, услуг, осуществляемых в соответствии с Федеральным законом № 44-ФЗ.
A58: _____14_Плановые показатели выплат на закупку товаров, работ, услуг по строке 26500 государственного (муниципального) бюджетного учреждения должен быть не менее суммы показателей строк 26410, 26420, 26430, 26440 по соответствующей графе, государственного (муниципального) автономного учреждения - не менее показателя строки 26430 по соответствующей графе.

Sheet раздел. 3_
A1: 3. Сведения и показатели об использовании ресурсов учреждения
A2: на " 30 " декабря 2020 г.
A3: Наименование показателя | B3: Единицы измерения | C3: за _2020_ отчетный финансовый год | D3: на _2021_ текущий финансовый год | E3: на _2022_ 1-ый год планового периода | F3: на _2023_ 2-ой год планового периода | G3: за пределами планового периода
A4: 1 | B4: 2 | C4: 4 | D4: 4 | E4: 6 | F4: 7 | G4: 7
A5: 1. Сведения об уровне оплаты труда работников учреждения | B5: х | C5: х | D5: х | E5: х | F5: х | G5: х
A6: 1.1. Фонд оплаты труда, всего | B6: тыс. руб. | C6: =C9+C11 -> 19,533.10 | D6: 18,764.07 | E6: 17,787.68 | F6: 17,605
A7: из них: выплаты стимулирующего характера | B7: тыс. руб. | C7: =C10+C12 -> 5,936.03 | D7: =D10+D12 -> 5,750.00 | E7: =E10+E12 -> 5,600.00 | F7: 5,400.00
A8: в том числе:
A9: 1.1.1.Фонд оплаты труда руководителей учреждения и их заместителей | B9: тыс. руб. | C9: 7,621.70 | D9: 7,500.00 | E9: 7,300.00 | F9: 7,200
A10: из них: выплаты стимулирующего характера | B10: тыс. руб. | C10: 2,841.37 | D10: 2,700.00 | E10: 2,600.00 | F10: 2,500
A11: 1.1.2. Фонд оплаты труда прочих работников учреждения | B11: тыс. руб. | C11: 11,911.40 | D11: 11,264.07 | E11: 10,487.68 | F11: 10,405
A12: из них: выплаты стимулирующего характера | B12: тыс. руб. | C12: 3,094.66 | D12: 3,050.00 | E12: 3,000.00 | F12: 2,900
A13: 1.2. Фонд оплаты труда, отдельных категорий работников бюджетной сферы, повышение оплаты труда которых предусмотрено указами Президента РФ, всего | B13: тыс. руб. | C13: 14,844.90 | D13: 15,171.27 | E13: 15,951.44 | F13: 16,336.90
A14: в т.ч. педагогический персонал | B14: тыс. руб. | C14: 14,844.90 | D14: 15,171.27 | E14: 15,951.44 | F14: 16,336.90
A15: 1.3. Среднесписочная численность работников учреждения | B15: чел. | C15: 51.80 | D15: 51.80 | E15: 51.80 | F15: 51.80
A16: в том числе:
A17: 1.3.1. Среднесписочная численность руководителей учреждения и их заместителей | B17: чел. | C17: 6.00 | D17: 6.00 | E17: 6.00 | F17: 6.00
A18: 1.3.2. Среднесписочная численность прочих работников учреждения | B18: чел. | C18: 24.30 | D18: 24.30 | E18: 24.30 | F18: 24.30
A19: 1.4. Среднесписочная численность работников учреждения, с которыми заключены эффективные контракты | B19: чел. | C19: 51.80 | D19: 51.80 | E19: 51.80 | F19: 51.80
A20: в том числе:
A21: 1.4.1. Среднесписочная численность руководителей учреждения и их заместителей, с которыми заключены эффективные контракты | B21: чел. | C21: 6.00 | D21: 6.00 | E21: 6.00 | F21: 6.00
A22: 1.4.2. Среднесписочная численность прочих работников учреждения, с которыми заключены эффективные контракты | B22: чел. | C22: 24.30 | D22: 24.30 | E22: 24.30 | F22: 24.30
A23: 1.5. Среднесписочная численность, отдельных категорий работников бюджетной сферы, повышение оплаты труда которых предусмотрено указами Президента РФ, всего | B23: чел. | C23: 21.50 | D23: 21.50 | E23: 21.50 | F23: 21.50
A24: в том числе по категориям работников: педагогический персонал | B24: чел. | C24: 21.50 | D24: 21.50 | E24: 21.50 | F24: 21.50
A25: 1.6. Средняя заработная плата, необходимая для реализации указов Президента РФ, предусматривающих повышение оплаты труда отдельных категорий работников бюджетной сферы | B25: руб. | C25: 56,500.00 | D25: 60,700.00 | E25: 65,050.00 | F25: 70,100.00
A26: 1.7. Средняя заработная плата, сложившаяся/прогнозируемая в отчетном периоде | B26: руб. | C26: х | D26: х | E26: х | F26: х | G26: х
A27: в том числе по категориям работников, повышение оплаты труда которых предусмотрено указами Президента РФ:
A28: педагогический персонал (преподаватели, мастера ПО) | C28: 57,540.00 | D28: 57,665.00 | E28: 61,797.50 | F28: 66,595.00
A29: 1.8. Отношение средней заработной платы руководителей учреждения и их заместителей к средней заработной плате работников учреждения | B29: % | C29: 54
A30: 1.9. Отношение средней заработной платы, сложившейся/прогнозируемой в отчетном периоде к средней заработной плате, необходимой для реализации указов Президента РФ | B30: % | C30: х | D30: х | E30: х | F30: х | G30: х
A31: в том числе по категориям работников, повышение оплаты труда которых предусмотрено указами Президента РФ: | B31: % | C31: 102
A32: педагогический персонал (преподаватели, мастера ПО)
A33: 2. Сведения об использовании имущества учреждения | B33: х | C33: х | D33: х | E33: х | F33: х | G33: х
A34: 2.1. Общая площадь объектов недвижимого имущества, закрепленная за учреждением | B34: м² | C34: 10,527.90 | D34: 10,527.90 | E34: 10,527.90 | F34: 10,527.90
A35: в том числе:
A36: 2.1.1. Площадь недвижимого имущества в безвозмездном пользовании, всего | B36: м² | C36: 10,527.90 | D36: 10,527.90 | E36: 10,527.90 | F36: 10,527.90
A37: 2.1.2.Площадь недвижимого имущества в безвозмездном пользовании, не используемая для выполнения государственного задания | B37: м² | C37: 137.40 | D37: 137.4 | E37: 137.4 | F37: 0
A38: 2.1.3. Площадь недвижимого имущества, переданная в аренду | B38: м² | C38: 0.00 | D38: 358.6 | E38: 358.6 | F38: 358.6
A39: 2.2. Затраты на содержание имущества учреждения | B39: тыс. руб. | C39: 16,413.80
A40: в том числе:
A41: 2.2.1. Затраты на содержание имущества учреждения, не используемого для выполнения государственного задания | B41: тыс. руб. | C41: 514.5 | D41: 850.0 | E41: 850.0 | F41: 850.0
A42: 2.3. Коэффициент износа основных средств (отношение величины износа основных средств на конец отчетного периода к стоимости основных средств учреждения на конец отчетного периода) | B42: ед. | C42: 0.47 | D42: 0.47 | E42: 0.47 | F42: 0.47
A43: 2.4. Коэффициент обновления основных средств (отношение стоимости основных средств поступивших за отчетный период к общей стоимости основных средств учреждения на конец отчетного периода) | B43: ед. | C43: 0.01 | D43: 0.01 | E43: 0.01 | F43: 0.01
A44: 2.5. Коэффициенты ремонта зданий, характеризующие величину фактических расходов на капитальный ремонт зданий, приходящуюся на один рубль балансовой стоимости основных средств (в том числе за счет бюджетных средств) | B44: ед.
A45: в том числе:
B46: ед.

Sheet раздел. 4_
A1: Раздел 4. Перечень мероприятий по повышению эффективности деятельности учреждения
A2: на " 30 " декабря 2020 г.
A4: Наименование мероприятия | B4: Сроки проведения | C4: Ожидаемый результат реализации | E4: Затраты, необходимые на проведение мероприятия, тыс. руб
A5: 1. Повышение эффективности управления и кадрового потенциала учреждения
A6: 2. Повышение эффективности управления государственной собственностью
A7: 3. Повышение качества предоставления государственных услуг
A8: 4. Направления оптимизации расходов учреждения
A9: Итого: | B9: х | C9: х
A11: Ответственное должностное лицо: | B11: Главный бухгалтер | C11: ____________________ | E11: Манаенкова О.А.
B12: (должность) | C12: (подпись) | E12: (расшифровка подписи)
A13: Исполнитель | B13: Главный бухгалтер | C13: ____________________ | E13: Манаенкова О.А. | AI13: (должность) | BC13: (подпись) | BQ13: (расшифровка подписи)
B14: (должность) | C14: (фамилия, инициалы) | E14: (телефон)
A16: "30" декабря 2020 г.
AE17: (должность) | AY17: (фамилия, инициалы) | BS17: (телефон)
A18: СОГЛАСОВАНО:
A21: (наименование должности уполномоченного лица органа, осуществляющего функции и полномочия учредителя)
A22: ___________________ | B22: ____________________________
A23: (подпись) | B23: (расшифровка подписи)
A24: "___" __________ 20___ г. »
